bitfinex/quotes_SOLUSD_20240816
["timestamp","ask_amount","ask_price","bid_price","bid_amount"]
[1723774089103,7.0593,141.66,141.61,44.7147]
[1723774089407,7.0593,141.66,141.61,24.7147]
[1723774090481,7.0596,141.65,141.61,24.7147]
[1723774090705,7.0593,141.66,141.61,24.7147]
[1723774090900,7.0593,141.66,141.61,26.12680266]
[1723774091106,3.94455388,141.69,141.64,20.0]
[1723774091318,23.2128,141.7,141.65,12.12162446]
[1723774091494,23.2128,141.7,141.66,7.059]
[1723774092004,23.2128,141.7,141.65,35.418]
[1723774092191,23.2128,141.7,141.65,24.708]
[1723774093656,23.2128,141.7,141.66,7.0591]
[1723774095629,7.0576,141.69,141.65,24.7081]
[1723774096218,7.0576,141.69,141.65,17.6486]
[1723774097742,7.0576,141.69,141.65,24.7081]
[1723774101046,16.1555,141.7,141.65,24.7081]
[1723774101047,7.0581,141.68,141.65,17.6486]
[1723774101248,7.0578,141.69,141.65,17.6486]
[1723774102274,7.0578,141.69,141.65,24.7081]
[1723774104655,7.0582,141.68,141.65,17.6486]
[1723774104964,7.0578,141.69,141.65,17.6486]
[1723774106757,7.0578,141.69,141.65,24.7082]
[1723774109148,7.0578,141.69,141.65,44.7082]
[1723774109353,16.1555,141.7,141.67,7.0585]
[1723774109752,7.0569,141.71,141.67,7.0585]
[1723774110151,7.0571,141.7,141.66,7.0589]
[1723774110873,7.0571,141.7,141.66,8.47046335]
[1723774111267,7.0568,141.71,141.67,27.0585]
[1723774112075,7.0568,141.71,141.67,7.0585]
[1723774118284,11.00026908,141.71,141.66,7.0589]
[1723774118482,7.0568,141.71,141.66,7.0589]
[1723774119273,12.76469356,141.71,141.66,7.0589]
[1723774119468,7.0568,141.71,141.66,7.0589]
[1723774119669,11.00026908,141.71,141.66,7.0589]
[1723774119876,7.0568,141.71,141.66,7.0589]
[1723774120078,7.0568,141.71,141.67,7.0586]
[1723774120079,11.00026908,141.71,141.67,7.0586]
[1723774120282,7.0568,141.71,141.67,7.0586]
[1723774120488,11.00026908,141.71,141.67,7.0586]
[1723774120683,7.0568,141.71,141.67,7.0586]
[1723774120983,11.00026908,141.71,141.67,7.0586]
[1723774121191,10.99966908,141.72,141.68,7.058]
[1723774121389,3.94346908,141.71,141.7,7.0571]
[1723774121695,3.94346908,141.75,141.71,30.71]
[1723774121887,15.1371,141.77,141.73,17.7654]
[1723774121888,3.94346908,141.74,141.73,17.7654]
[1723774122093,3.94231039,141.76,141.73,37.7654]
[1723774122265,3.94231039,141.75,141.74,8.46594577]
[1723774122467,3.94231039,141.77,141.74,20.0]
[1723774122673,3.94231039,141.79,141.75,12.24611196]
[1723774122864,3.94231039,141.78,141.75,19.30061196]
[1723774123072,3.94231039,141.79,141.75,19.30061196]
[1723774123291,3.94231039,141.79,141.75,17.88999]
[1723774123808,3.94231039,141.78,141.75,7.0545]
[1723774124490,3.94231039,141.79,141.76,8.46482161]
[1723774125271,7.0518,141.81,141.77,7.0535]
[1723774125480,19.07941039,141.84,141.77,7.0535]
[1723774125481,7.0512,141.82,141.77,7.0535]
[1723774125661,3.94231039,141.81,141.77,8.46397183]
[1723774126283,7.0512,141.82,141.77,8.46397183]
[1723774126785,7.0512,141.82,141.77,7.0535]
[1723774127416,7.0507,141.83,141.78,7.053]
[1723774127619,7.0507,141.83,141.78,8.46340595]
[1723774128124,15.1371,141.84,141.75,0.12549]
[1723774128125,15.1371,141.84,141.75,10.71]
[1723774128325,10.71,141.83,141.75,10.71]
[1723774129093,10.71,141.83,141.76,7.0541]
[1723774129621,10.71,141.83,141.74,17.6372]
[1723774129622,7.0531,141.78,141.74,17.6372]
[1723774131018,7.0531,141.78,141.74,24.6923]
[1723774131914,20.88706237,141.83,141.75,32.1207229]
[1723774132231,20.0,141.82,141.75,30.71]
[1723774132528,20.0,141.82,141.75,17.7646]
[1723774133644,20.0,141.82,141.75,7.0546]
[1723774134010,12.4733962,141.81,141.73,10.71]
[1723774134830,7.054,141.77,141.72,6.3363]
[1723774135043,7.054,141.77,141.72,13.392]
[1723774136539,7.054,141.77,141.71,44.0073]
[1723774136540,15.7448,141.78,141.71,17.6409]
[1723774136842,15.7448,141.78,141.71,24.6975]
[1723774136843,7.0548,141.75,141.71,24.6975]
[1723774137237,10.71,141.77,141.68,17.6449]
[1723774137539,10.71,141.77,141.68,24.7029]
[1723774137540,7.0563,141.72,141.68,24.7029]
[1723774138704,7.0563,141.72,141.68,17.6449]
[1723774139532,7.0568,141.71,141.66,7.059]
[1723774139737,1.76454175,141.7,141.66,7.059]
[1723774139946,1.7645365,141.72,141.66,7.059]
[1723774140540,7.0568,141.71,141.66,7.059]
[1723774141641,7.0572,141.7,141.65,24.7079]
[1723774143960,7.0572,141.7,141.66,7.059]
[1723774148047,7.0572,141.7,141.65,24.7079]
[1723774148262,1.76468099,141.69,141.64,7.0597]
[1723774148557,48.52979378,141.72,141.64,7.0597]
[1723774148721,21.70979378,141.72,141.64,27.0597]
[1723774148923,17.76629,141.72,141.64,27.0597]
[1723774149232,7.0577,141.69,141.64,27.0597]
[1723774149417,7.0573,141.7,141.65,7.0596]
[1723774152048,7.0573,141.7,141.66,7.059]
[1723774152248,7.0573,141.7,141.65,7.0595]
[1723774152850,8.82240662,141.69,141.65,7.0595]
[1723774153052,7.0577,141.69,141.65,7.0595]
[1723774153284,1.76476277,141.68,141.65,7.0595]
[1723774153576,7.0577,141.69,141.64,17.65]
[1723774153779,7.0586,141.67,141.61,37.6532]
[1723774153991,8.82354219,141.67,141.61,37.6532]
[1723774154963,7.0586,141.67,141.62,7.061]
[1723774155143,1.76502637,141.66,141.62,7.061]
[1723774155775,8.82422637,141.66,141.62,7.061]
[1723774156276,7.0592,141.66,141.62,7.061]
[1723774157677,1.76513761,141.65,141.62,7.061]
[1723774160087,1.76513456,141.64,141.58,17.6571]
[1723774160397,7.0603,141.64,141.6,7.062]
[1723774161388,7.0598,141.65,141.6,27.062]
[1723774161597,7.0596,141.65,141.61,7.0615]
[1723774161880,7.0596,141.65,141.6,44.7166]
[1723774162089,20.0,141.67,141.6,44.7166]
[1723774162090,7.0606,141.64,141.6,37.6547]
[1723774163277,7.0606,141.64,141.6,44.7167]
[1723774163482,7.0598,141.65,141.6,44.7167]
[1723774166477,7.0598,141.65,141.6,24.7167]
[1723774168295,8.82545517,141.64,141.6,17.6547]
[1723774168464,7.0602,141.64,141.6,17.6547]
[1723774171973,7.0602,141.64,141.6,24.7167]
[1723774172170,26.3741,141.67,141.61,7.0616]
[1723774172171,7.0597,141.65,141.61,7.0616]
[1723774172371,7.0602,141.64,141.6,35.4467]
[1723774173059,7.0602,141.64,141.6,24.7167]
[1723774175997,7.0606,141.63,141.59,7.0625]
[1723774177272,10.85549,141.63,141.57,17.6581]
[1723774177472,1.76584726,141.62,141.57,17.6581]
[1723774177875,10.85549,141.63,141.57,17.6581]
[1723774178184,7.0622,141.6,141.57,17.6581]
[1723774178878,10.85549,141.63,141.55,7.0644]
[1723774179073,7.0627,141.59,141.55,7.0644]
[1723774179394,7.0627,141.59,141.54,25.5774211]
[1723774181075,7.0627,141.59,141.55,7.0645]
[1723774181275,1.76597077,141.58,141.54,25.5774211]
[1723774181997,7.0629,141.59,141.54,25.5774211]
[1723774182514,7.0629,141.59,141.55,7.0646]
[1723774183793,7.0631,141.58,141.54,18.5124211]
[1723774183968,7.0631,141.58,141.54,25.5774211]
[1723774184408,22.8708,141.59,141.54,25.5774211]
[1723774185579,7.0634,141.58,141.54,18.5124211]
[1723774185789,7.0636,141.57,141.54,0.8505211]
[1723774185990,15.8081,141.59,141.54,0.8505211]
[1723774185991,7.0633,141.58,141.54,0.8505211]
[1723774186190,8.83026769,141.57,141.54,0.8505211]
[1723774186398,7.064,141.57,141.54,0.8505211]
[1723774186770,1.76626446,141.56,141.54,0.8505211]
[1723774186970,8.83056446,141.56,141.54,0.8505211]
[1723774187197,7.0646,141.55,141.54,0.8505211]
[1723774189036,7.0643,141.56,141.54,0.8505211]
[1723774191519,3.94637639,141.58,141.54,0.8505211]
[1723774191824,22.8709,141.59,141.54,7.9155211]
[1723774193496,3.94598337,141.6,141.55,17.6611]
[1723774193815,3.94598337,141.62,141.55,37.6611]
[1723774193993,11.00718337,141.62,141.57,7.0633]
[1723774194195,11.00798337,141.61,141.56,7.064]
[1723774194510,11.00738337,141.62,141.55,37.6611]
[1723774194720,16.6546,141.63,141.55,37.6611]
[1723774194721,3.94598337,141.61,141.58,7.063]
[1723774195027,3.94598337,141.62,141.58,7.063]
[1723774195225,3.94598337,141.61,141.58,7.063]
[1723774195423,23.7155,141.63,141.58,7.063]
[1723774195424,3.94598337,141.62,141.58,7.063]
[1723774195594,7.0609,141.63,141.58,7.063]
[1723774195792,11.00688337,141.63,141.58,7.063]
[1723774195994,7.0609,141.63,141.58,7.063]
[1723774196209,11.00718337,141.62,141.58,7.063]
[1723774196411,7.0612,141.62,141.58,7.063]
[1723774196927,11.00718337,141.62,141.58,7.063]
[1723774197136,7.0612,141.62,141.58,7.063]
[1723774197302,3.94598337,141.61,141.58,7.063]
[1723774197709,7.0612,141.62,141.58,7.063]
[1723774198213,3.94598337,141.61,141.58,7.063]
[1723774198925,3.94598337,141.62,141.58,7.063]
[1723774199124,7.0608,141.63,141.58,7.063]
[1723774199338,3.94563079,141.62,141.58,7.063]
[1723774199498,3.94563079,141.61,141.58,7.063]
[1723774199693,11.00683079,141.62,141.58,7.063]
[1723774199909,11.00683079,141.62,141.57,17.6587]
[1723774199910,3.94563079,141.61,141.57,24.7221]
[1723774200212,3.94563079,141.61,141.58,7.063]
[1723774201232,3.94563079,141.6,141.58,7.063]
[1723774201404,3.94563079,141.61,141.58,7.063]
[1723774201724,7.0612,141.62,141.58,7.063]
[1723774201725,3.94563079,141.6,141.58,7.063]
[1723774202044,3.94559394,141.61,141.58,7.063]
[1723774202203,3.94559394,141.6,141.57,24.7222]
[1723774202403,3.94559394,141.61,141.57,24.7222]
[1723774202614,3.94559394,141.6,141.57,24.7222]
[1723774202816,3.94559394,141.61,141.57,24.7222]
[1723774203008,3.94559394,141.6,141.57,24.7222]
[1723774203205,3.94559394,141.61,141.58,7.0631]
[1723774203509,3.94559394,141.6,141.59,7.0626]
[1723774203744,3.94559394,141.62,141.59,7.0626]
[1723774204043,7.0608,141.63,141.59,7.0626]
[1723774204044,3.94559394,141.61,141.59,7.0626]
[1723774204338,3.94559394,141.62,141.59,7.0626]
[1723774204645,3.94559394,141.61,141.58,7.0629]
[1723774204845,3.94559394,141.6,141.57,24.7221]
[1723774205019,3.94559394,141.59,141.57,24.7221]
[1723774205217,3.94559394,141.61,141.58,7.0631]
[1723774205426,3.94559394,141.6,141.58,7.0631]
[1723774205629,3.94559394,141.59,141.58,7.0631]
[1723774205840,3.94559394,141.61,141.58,7.0631]
[1723774206020,3.94559394,141.6,141.58,7.0631]
[1723774206224,3.94571181,141.59,141.58,7.0631]
[1723774206425,3.94571181,141.61,141.58,7.0631]
[1723774206719,3.94571181,141.6,141.58,7.0631]
[1723774206907,3.94571181,141.59,141.58,7.0631]
[1723774207111,3.94571181,141.61,141.58,7.0631]
[1723774207336,3.94571181,141.6,141.58,7.0631]
[1723774207534,3.94571181,141.59,141.58,7.0631]
[1723774207720,3.94571181,141.62,141.58,7.0631]
[1723774207922,3.94571181,141.61,141.58,7.0631]
[1723774208130,3.94571181,141.6,141.58,7.0631]
[1723774208345,3.94571181,141.62,141.58,7.0631]
[1723774208651,3.94571181,141.61,141.58,7.0631]
[1723774208833,3.94571181,141.6,141.59,7.0626]
[1723774209028,3.94571181,141.62,141.59,7.0626]
[1723774209219,3.94571181,141.61,141.59,7.0626]
[1723774209420,3.94571181,141.6,141.59,7.0626]
[1723774209719,3.94571181,141.62,141.59,7.0626]
[1723774210050,3.94571181,141.61,141.59,7.0626]
[1723774210260,3.94571181,141.6,141.59,7.0626]
[1723774210545,3.94539344,141.62,141.58,7.0629]
[1723774210757,3.94539344,141.61,141.58,7.0629]
[1723774210925,3.94554937,141.6,141.59,7.0626]
[1723774211519,3.94554937,141.6,141.56,10.73]
[1723774211520,3.94554937,141.6,141.56,7.0638]
[1723774211719,3.94554937,141.59,141.56,7.0638]
[1723774211953,3.94554937,141.58,141.56,7.0638]
[1723774212119,3.94554937,141.6,141.56,7.0638]
[1723774212319,3.94554937,141.59,141.56,7.0638]
[1723774212533,3.94554937,141.58,141.56,7.0638]
[1723774212728,3.94554937,141.6,141.56,7.0638]
[1723774212940,3.94554937,141.59,141.56,7.0638]
[1723774213246,7.0617,141.61,141.54,18.5123211]
[1723774213247,3.94554937,141.58,141.54,18.5123211]
[1723774213452,3.94554937,141.57,141.54,18.5123211]
[1723774213639,3.94554937,141.56,141.54,18.5123211]
[1723774213835,3.94554937,141.55,141.54,0.8505211]
[1723774214035,11.01014937,141.55,141.54,0.8505211]
[1723774217237,3.94554937,141.55,141.54,0.8505211]
[1723774217446,23.94554937,141.58,141.54,0.8505211]
[1723774217634,7.0641,141.56,141.54,0.8505211]
[1723774217835,3.94554937,141.55,141.54,0.8505211]
[1723774218756,11.01014937,141.55,141.54,0.8505211]
[1723774218933,11.01157073,141.55,141.54,0.8505211]
[1723774220133,11.0118712,141.55,141.54,0.8505211]
[1723774222219,7.0687,141.47,141.42,26.4127]
[1723774222424,8.8368344,141.46,141.41,7.0715]
[1723774222643,1.76765142,141.45,141.41,7.0715]
[1723774223019,7.0692,141.46,141.42,27.0711]
[1723774223223,11.0164712,141.46,141.42,27.0711]
[1723774223453,11.0159712,141.47,141.42,27.0711]
[1723774223634,11.01786034,141.47,141.42,27.0711]
[1723774225440,3.94916034,141.5,141.44,20.0]
[1723774225741,3.94916034,141.49,141.44,20.0]
[1723774225960,11.01676034,141.49,141.44,20.0]
[1723774226163,7.0676,141.49,141.44,20.0]
[1723774227078,7.0676,141.49,141.45,7.0695]
[1723774227459,8.83554722,141.48,141.44,20.0]
[1723774227976,7.0689,141.47,141.43,17.6758]
[1723774228151,1.76757472,141.46,141.43,17.6758]
[1723774228564,1.76762604,141.45,141.43,17.6758]
[1723774229484,7.0687,141.47,141.43,17.6758]
[1723774229978,8.83674531,141.46,141.42,7.0708]
[1723774230181,1.76773738,141.45,141.4,18.5299211]
[1723774230875,7.0705,141.44,141.4,18.5299211]
[1723774231045,1.76793261,141.43,141.4,18.5299211]
[1723774231244,7.0705,141.44,141.4,18.5299211]
[1723774231471,7.0697,141.45,141.4,25.6018211]
[1723774231668,7.0697,141.45,141.4,38.5299211]
[1723774232452,7.0691,141.46,141.4,65.3999211]
[1723774232757,15.7992,141.48,141.42,20.0]
[1723774232944,7.0679,141.49,141.44,24.7442]
[1723774234356,7.0672,141.5,141.45,7.0696]
[1723774234865,7.0676,141.49,141.45,7.0696]
[1723774235061,21.61226927,141.54,141.47,20.0]
[1723774235062,3.94886927,141.54,141.47,20.0]
[1723774235268,15.4895,141.55,141.47,20.0]
[1723774235468,15.4895,141.55,141.49,20.0]
[1723774235668,14.3856413,141.56,141.51,7.0665]
[1723774235853,7.0642,141.56,141.52,7.0661]
[1723774236073,16.089,141.59,141.53,7.0655]
[1723774236472,7.0632,141.58,141.53,7.0655]
[1723774236863,7.064,141.57,141.52,24.7308]
[1723774237267,7.0632,141.58,141.53,7.0655]
[1723774237786,7.0637,141.57,141.52,71.6008]
[1723774238191,23.152,141.59,141.54,7.0651]
[1723774238382,7.0622,141.6,141.55,7.0645]
[1723774238984,7.0622,141.6,141.56,7.0641]
[1723774239281,7.0617,141.61,141.56,7.0641]
[1723774240684,7.0612,141.62,141.57,27.0634]
[1723774240889,7.0616,141.61,141.57,7.0634]
[1723774242269,16.3412,141.63,141.58,24.7202]
[1723774242270,7.0606,141.63,141.58,24.7202]
[1723774242573,7.0606,141.63,141.59,7.0626]
[1723774243070,7.0602,141.64,141.59,7.0626]
[1723774243273,7.0606,141.63,141.59,7.0624]
[1723774243676,7.0606,141.63,141.58,24.7202]
[1723774245688,8.826725,141.62,141.58,24.7202]
[1723774245879,7.0612,141.62,141.58,24.7202]
[1723774246079,7.0612,141.62,141.58,17.6573]
[1723774247500,7.0616,141.61,141.58,17.6573]
[1723774247673,0.12549,141.65,141.58,17.6573]
[1723774247872,65.50196,141.65,141.58,17.6573]
[1723774248996,83.15186,141.65,141.55,17.6607]
[1723774250100,7.0626,141.59,141.55,24.7253]
[1723774251210,7.0626,141.59,141.55,17.6607]
[1723774251373,7.0626,141.59,141.55,24.7252]
[1723774251970,7.0622,141.6,141.56,7.0639]
[1723774252375,7.0622,141.6,141.55,17.6607]
[1723774252376,7.0622,141.6,141.55,24.7251]
[1723774252866,7.0626,141.59,141.55,24.7251]
[1723774254679,7.0626,141.59,141.55,17.6607]
[1723774255090,7.0626,141.59,141.55,24.7252]
[1723774255404,7.0622,141.6,141.56,7.064]
[1723774255999,34.19060339,141.64,141.56,7.064]
[1723774256000,7.0614,141.62,141.57,7.0634]
[1723774256394,7.0616,141.61,141.57,7.0634]
[1723774257078,7.0616,141.61,141.55,17.6607]
[1723774257303,7.0616,141.61,141.56,7.0641]
[1723774258007,7.0616,141.61,141.57,7.0634]
[1723774258579,30.81583544,141.64,141.56,7.0639]
[1723774258793,7.0622,141.6,141.56,7.0639]
[1723774259294,7.0618,141.61,141.56,7.0639]
[1723774261611,7.0622,141.6,141.56,7.0639]
[1723774263424,7.0622,141.6,141.55,24.725]
[1723774263838,1.765921,141.59,141.55,24.725]
[1723774263995,26.87,141.59,141.51,6.1073]
[1723774264198,7.0652,141.54,141.49,27.0672]
[1723774264406,7.0652,141.54,141.49,44.7357]
[1723774267508,6.97185142,141.54,141.49,44.7357]
[1723774267700,7.0648,141.55,141.5,7.0671]
[1723774267908,7.0642,141.56,141.49,37.6685]
[1723774268123,7.0642,141.56,141.51,7.0664]
[1723774268295,7.0638,141.57,141.52,7.066]
[1723774268491,7.0636,141.57,141.53,7.0652]
[1723774269521,7.0636,141.57,141.52,7.066]
[1723774269695,7.0644,141.56,141.51,24.7326]
[1723774270520,46.41877818,141.59,141.5,7.067]
[1723774270732,7.0648,141.55,141.5,7.067]
[1723774271538,7.0648,141.55,141.51,7.0663]
[1723774272234,23.94730502,141.58,141.47,40.3579]
[1723774272235,7.0656,141.53,141.47,40.3579]
[1723774272810,7.0653,141.54,141.49,7.0676]
[1723774273910,16.1569,141.55,141.47,17.6709]
[1723774273911,33.819,141.55,141.47,17.6709]
[1723774274119,7.0667,141.51,141.47,24.7394]
[1723774274733,7.0662,141.52,141.47,44.7394]
[1723774276521,7.0667,141.51,141.47,44.7394]
[1723774277833,7.0676,141.5,141.44,73.0249]
[1723774278038,1.76704014,141.49,141.45,7.0693]
[1723774278216,21.76712458,141.52,141.45,7.0693]
[1723774278416,7.0671,141.5,141.46,7.069]
[1723774280414,20.0,141.52,141.47,7.0684]
[1723774280730,7.0664,141.52,141.47,7.0684]
[1723774280930,7.0666,141.51,141.47,7.0684]
[1723774281513,7.0666,141.51,141.46,44.7412]
[1723774281721,7.0666,141.51,141.47,7.0686]
[1723774282314,7.0663,141.52,141.48,27.0679]
[1723774282527,7.0663,141.52,141.47,7.0684]
[1723774282840,8.83369428,141.51,141.47,7.0684]
[1723774283040,7.0668,141.51,141.47,7.0684]
[1723774283548,7.0672,141.5,141.46,24.7412]
[1723774285541,7.0667,141.51,141.47,7.0685]
[1723774293663,7.0667,141.51,141.46,24.7412]
[1723774294143,3.94835054,141.54,141.48,17.67]
[1723774294460,16.1569,141.55,141.5,17.6673]
[1723774294666,23.2216,141.55,141.5,24.7342]
[1723774295360,16.1569,141.55,141.48,13.518]
[1723774295556,16.1569,141.55,141.48,6.45]
[1723774295557,7.066,141.53,141.48,6.45]
[1723774295765,1.76676442,141.54,141.47,24.7394]
[1723774295938,20.10525054,141.55,141.47,24.7394]
[1723774296456,7.0663,141.52,141.47,24.7394]
[1723774300976,7.0666,141.51,141.47,24.7394]
[1723774301182,1.76687888,141.51,141.43,7.0703]
[1723774301384,26.8948,141.5,141.42,20.0]
[1723774301670,7.0683,141.48,141.43,7.0703]
[1723774301972,8.8355783,141.48,141.43,7.0703]
[1723774302976,12.52734868,141.48,141.41,17.6781]
[1723774303145,16.47622325,141.48,141.41,17.6781]
[1723774304172,7.0696,141.45,141.41,24.7496]
[1723774305071,7.0693,141.46,141.41,24.7496]
[1723774307670,7.0696,141.45,141.41,24.7496]
[1723774308466,12.78647205,141.45,141.41,24.7496]
[1723774308691,7.0701,141.44,141.4,7.9225211]
[1723774309266,11.0195477,141.44,141.4,7.9225211]
[1723774309484,7.0701,141.44,141.4,7.9225211]
[1723774310084,11.01919851,141.45,141.4,7.9225211]
[1723774310285,3.94949851,141.44,141.41,7.0715]
[1723774311289,7.0697,141.45,141.41,7.0715]
[1723774311702,11.01919851,141.45,141.41,7.0715]
[1723774311901,7.0697,141.45,141.41,7.0715]
[1723774312398,11.01919851,141.45,141.41,7.0715]
[1723774312701,7.0697,141.45,141.41,7.0715]
[1723774313196,11.01919851,141.45,141.41,7.0715]
[1723774313373,7.0697,141.45,141.41,7.0715]
[1723774313775,11.01919851,141.45,141.41,7.0715]
[1723774313974,3.94949851,141.44,141.41,7.0715]
[1723774316585,7.0693,141.46,141.41,7.0715]
[1723774316586,3.94949851,141.45,141.41,7.0715]
[1723774316787,3.94949851,141.44,141.41,7.0715]
[1723774317612,7.0696,141.45,141.41,7.0715]
[1723774317912,3.94937233,141.44,141.41,7.0715]
[1723774319410,3.94937233,141.43,141.41,7.0715]
[1723774319609,3.94937233,141.43,141.4,18.5301211]
[1723774319610,3.94937233,141.44,141.42,27.071]
[1723774319778,3.94937233,141.45,141.42,27.071]
[1723774319974,5.71684455,141.44,141.4,0.8505211]
[1723774320204,3.94937233,141.43,141.4,0.8505211]
[1723774320511,27.2314,141.45,141.4,0.8505211]
[1723774320703,3.94952197,141.44,141.4,0.8505211]
[1723774320869,3.94952197,141.43,141.4,0.8505211]
[1723774321075,11.01991942,141.44,141.4,7.9225211]
[1723774321309,3.94951942,141.43,141.4,7.9225211]
[1723774322609,3.94951942,141.44,141.4,7.9225211]
[1723774322821,3.94951942,141.43,141.4,7.9225211]
[1723774322988,3.94951942,141.44,141.4,7.9225211]
[1723774323190,3.94951942,141.43,141.4,7.9225211]
[1723774323491,3.94951942,141.44,141.4,7.9225211]
[1723774323693,3.94951942,141.43,141.4,7.9225211]
[1723774324002,3.94951942,141.44,141.4,7.9225211]
[1723774324183,3.94951942,141.43,141.4,20.8505211]
[1723774324382,3.94951942,141.45,141.4,20.8505211]
[1723774324615,3.94951942,141.44,141.41,7.0714]
[1723774324816,3.94953301,141.43,141.41,7.0714]
[1723774325020,3.94953301,141.44,141.41,7.0714]
[1723774325213,3.94953301,141.43,141.42,7.0711]
[1723774325415,3.94953301,141.45,141.42,7.0711]
[1723774325910,3.94953301,141.45,141.4,51.6105211]
[1723774326118,15.7353,141.48,141.4,51.6105211]
[1723774326119,3.94953301,141.47,141.43,24.7465]
[1723774326286,3.94953301,141.46,141.43,24.7465]
[1723774326624,3.94953301,141.45,141.44,7.0701]
[1723774326822,3.94953301,141.47,141.44,7.0701]
[1723774327022,3.94953301,141.46,141.44,7.0701]
[1723774327324,3.94953301,141.46,141.43,17.6761]
[1723774327325,3.94953301,141.45,141.43,24.7465]
[1723774327504,3.94953301,141.47,141.43,24.7465]
[1723774327704,3.94953301,141.46,141.43,24.7465]
[1723774328003,3.94953301,141.45,141.43,24.7465]
[1723774328320,3.94953301,141.47,141.43,24.7465]
[1723774328526,3.94953301,141.46,141.43,24.7465]
[1723774328708,3.94953301,141.45,141.43,24.7465]
[1723774328896,3.94953301,141.47,141.43,24.7465]
[1723774329095,3.94953301,141.46,141.43,24.7465]
[1723774329297,3.94953301,141.45,141.43,24.7465]
[1723774329525,3.94899417,141.47,141.43,24.7465]
[1723774329698,3.94899417,141.46,141.43,24.7465]
[1723774329901,3.94899417,141.45,141.43,24.7465]
[1723774330099,3.94899417,141.47,141.43,24.7465]
[1723774330323,3.94899417,141.46,141.43,24.7465]
[1723774330530,3.94899417,141.45,141.43,24.7465]
[1723774330699,3.94899417,141.47,141.43,24.7465]
[1723774330896,3.94899417,141.46,141.43,24.7465]
[1723774331108,3.94899417,141.45,141.43,24.7465]
[1723774331300,3.94899417,141.47,141.44,7.0701]
[1723774331511,3.94899417,141.46,141.43,24.7466]
[1723774331801,3.94899417,141.45,141.43,24.7466]
[1723774332027,3.94899417,141.47,141.43,24.7466]
[1723774332210,3.94899417,141.46,141.43,24.7466]
[1723774332404,3.94899417,141.45,141.43,24.7466]
[1723774332599,11.01799417,141.47,141.43,17.6761]
[1723774332809,3.94899417,141.46,141.43,17.6761]
[1723774333035,10.76,141.47,141.4,0.8505211]
[1723774333330,11.01871226,141.46,141.42,7.0711]
[1723774333501,3.94931226,141.45,141.42,7.0711]
[1723774333699,3.94931226,141.44,141.42,7.0711]
[1723774333939,3.94931226,141.45,141.42,7.0711]
[1723774334110,7.0694,141.46,141.42,7.0711]
[1723774334111,3.94934764,141.44,141.42,7.0711]
[1723774334410,7.0694,141.46,141.42,7.0711]
[1723774334411,3.94934764,141.43,141.42,7.0711]
[1723774334729,3.94934764,141.45,141.42,7.0711]
[1723774334906,3.94934764,141.44,141.42,7.0711]
[1723774335105,3.94926884,141.45,141.42,7.0711]
[1723774335310,3.94926884,141.44,141.42,7.0711]
[1723774335512,3.94926884,141.46,141.43,27.0704]
[1723774335708,3.94926884,141.45,141.43,27.0704]
[1723774335903,3.94926884,141.46,141.43,27.0704]
[1723774336124,7.0688,141.47,141.43,27.0704]
[1723774336400,3.94915048,141.46,141.43,27.0704]
[1723774336704,3.94915048,141.45,141.43,27.0704]
[1723774336909,3.94915048,141.44,141.43,27.0704]
[1723774337096,7.0688,141.47,141.43,27.0704]
[1723774337413,3.94907418,141.46,141.43,27.0704]
[1723774337614,3.94907418,141.45,141.43,27.0704]
[1723774337818,3.94907418,141.44,141.43,20.0]
[1723774337996,7.0688,141.47,141.43,20.0]
[1723774338201,3.94911355,141.46,141.43,20.0]
[1723774338401,3.94911355,141.45,141.44,21.41389147]
[1723774338728,23.22651259,141.51,141.44,21.41389147]
[1723774338729,3.94911355,141.5,141.48,20.0]
[1723774338918,7.066,141.53,141.49,7.0676]
[1723774339115,3.94849643,141.52,141.48,27.0679]